[Event "Titled Tuesday Blitz July 11 Late 2023"]
[White "Martinez Reyes, Pedro Ramon"]
[Black "Schuster, Karsten"]
[WhiteFideId "3901807"]
[BlackFideId "4611071"]
[WhiteElo "2499"]
[BlackElo "2337"]
[Result "1-0"]
[Round "5"]
[TimeControl "180+2"]
[Date "2023.07.11"]
[WhiteClock "0:01:48"]
[BlackClock "0:01:33"]
[Board "120"]

1. g4 {[%clk 0:03:00]}  h5 {[%clk 0:02:57]} 2. g5 {[%clk 0:02:59]}  g6 {[%clk 0:02:57]} 3. d4 {[%clk 0:02:57]}  Bg7 {[%clk 0:02:57]} 4. Nc3 {[%clk 0:02:57]}  d6 {[%clk 0:02:48]} 5. Bg2 {[%clk 0:02:52]}  e6 {[%clk 0:02:42]} 6. e4 {[%clk 0:02:39]}  Ne7 {[%clk 0:02:41]} 7. Be3 {[%clk 0:02:39]}  Nd7 {[%clk 0:02:39]} 8. Nge2 {[%clk 0:02:38]}  c5 {[%clk 0:02:39]} 9. Qd2 {[%clk 0:02:32]}  Rb8 {[%clk 0:02:35]} 10. O-O-O {[%clk 0:02:32]}  O-O {[%clk 0:02:26]} 11. dxc5 {[%clk 0:02:29]}  dxc5 {[%clk 0:02:24]} 12. Bxc5 {[%clk 0:02:27]}  b5 {[%clk 0:02:18]} 13. Qd6 {[%clk 0:02:20]}  Re8 {[%clk 0:02:05]} 14. Qxb8 {[%clk 0:02:13]}  Nxb8 {[%clk 0:02:05]} 15. Rxd8 {[%clk 0:02:14]}  Rxd8 {[%clk 0:02:06]} 16. Bxe7 {[%clk 0:02:14]}  Re8 {[%clk 0:02:06]} 17. Bf6 {[%clk 0:02:14]}  b4 {[%clk 0:02:05]} 18. Bxg7 {[%clk 0:02:14]}  Kxg7 {[%clk 0:02:04]} 19. Nb5 {[%clk 0:02:14]}  Ba6 {[%clk 0:02:01]} 20. Nc7 {[%clk 0:02:13]}  Rc8 {[%clk 0:02:00]} 21. Nxa6 {[%clk 0:02:11]}  Nxa6 {[%clk 0:02:01]} 22. Rd1 {[%clk 0:02:09]}  Nc5 {[%clk 0:02:00]} 23. Rd4 {[%clk 0:02:08]}  a5 {[%clk 0:02:00]} 24. Nf4 {[%clk 0:02:04]}  e5 {[%clk 0:01:58]} 25. Bh3 {[%clk 0:01:52]}  Rc7 {[%clk 0:01:43]} 26. Nd5 {[%clk 0:01:50]}  Rb7 {[%clk 0:01:35]} 27. Rc4 {[%clk 0:01:49]}  Ne6 {[%clk 0:01:33]} 28. Bxe6 {[%clk 0:01:48]} 1-0


[Site "https://www.chess.com"]

[Event "Titled Tuesday Blitz July 11 Late 2023"]
[White "Fajdetic, Hrvoje"]
[Black "Rakitic2010"]
[WhiteFideId "14501945"]
[WhiteElo "2334"]
[BlackElo "2496"]
[Result "0-1"]
[Round "5"]
[TimeControl "180+2"]
[Date "2023.07.11"]
[WhiteClock "0:00:00"]
[BlackClock "0:01:27"]
[Board "121"]

1. d4 {[%clk 0:02:57]}  c5 {[%clk 0:02:59]} 2. d5 {[%clk 0:02:57]}  Nf6 {[%clk 0:02:56]} 3. Nc3 {[%clk 0:02:57]}  b5 {[%clk 0:02:55]} 4. Nxb5 {[%clk 0:02:54]}  Bb7 {[%clk 0:02:54]} 5. Nc3 {[%clk 0:02:50]}  e6 {[%clk 0:02:54]} 6. e4 {[%clk 0:02:49]}  exd5 {[%clk 0:02:54]} 7. exd5 {[%clk 0:02:49]}  g6 {[%clk 0:02:54]} 8. Bc4 {[%clk 0:02:25]}  d6 {[%clk 0:02:53]} 9. Nf3 {[%clk 0:02:19]}  Bg7 {[%clk 0:02:53]} 10. O-O {[%clk 0:02:18]}  O-O {[%clk 0:02:53]} 11. Bf4 {[%clk 0:02:10]}  Nh5 {[%clk 0:02:46]} 12. Bg5 {[%clk 0:02:06]}  Qc8 {[%clk 0:02:43]} 13. Ne4 {[%clk 0:01:45]}  Qc7 {[%clk 0:02:26]} 14. g4 {[%clk 0:01:42]}  Qd7 {[%clk 0:02:20]} 15. gxh5 {[%clk 0:01:35]}  Qg4+ {[%clk 0:02:19]} 16. Kh1 {[%clk 0:01:32]}  Qxe4 {[%clk 0:02:18]} 17. Qd3 {[%clk 0:01:08]}  Qxd3 {[%clk 0:02:09]} 18. cxd3 {[%clk 0:01:06]}  Nd7 {[%clk 0:02:09]} 19. Be7 {[%clk 0:01:00]}  Rfe8 {[%clk 0:02:08]} 20. Bxd6 {[%clk 0:01:00]}  Nb6 {[%clk 0:02:09]} 21. Kg2 {[%clk 0:00:30]}  Rad8 {[%clk 0:02:03]} 22. Bc7 {[%clk 0:00:27]}  Nxd5 {[%clk 0:01:53]} 23. Bxd8 {[%clk 0:00:24]}  Nf4+ {[%clk 0:01:53]} 24. Kg3 {[%clk 0:00:18]}  Nxh5+ {[%clk 0:01:50]} 25. Kh4 {[%clk 0:00:16]}  Rxd8 {[%clk 0:01:44]} 26. Nd2 {[%clk 0:00:11]}  Bc8 {[%clk 0:01:38]} 27. Kg5 {[%clk 0:00:04]}  Rd4 {[%clk 0:01:36]} 28. f4 {[%clk 0:00:04]}  Bf6+ {[%clk 0:01:35]} 29. Kh6 {[%clk 0:00:04]}  Nxf4 {[%clk 0:01:27]} 30. Rxf4 {[%clk 0:00:00]}  Rxf4 {[%clk 0:01:27]} 0-1


[Site "https://www.chess.com"]

[Event "Titled Tuesday Blitz July 11 Late 2023"]
[White "Dubreuil, Julien"]
[Black "Vlassov, Nikolai"]
[WhiteFideId "621285"]
[BlackFideId "4103360"]
[WhiteElo "2357"]
[BlackElo "2571"]
[Result "0-1"]
[Round "5"]
[TimeControl "180+2"]
[Date "2023.07.11"]
[WhiteClock "0:00:16"]
[BlackClock "0:01:15"]
[Board "124"]

1. e4 {[%clk 0:02:48]}  Nc6 {[%clk 0:02:59]} 2. Nc3 {[%clk 0:02:48]}  Nf6 {[%clk 0:02:59]} 3. Nf3 {[%clk 0:02:46]}  d5 {[%clk 0:02:59]} 4. e5 {[%clk 0:02:43]}  Ne4 {[%clk 0:02:58]} 5. Bd3 {[%clk 0:02:41]}  Nc5 {[%clk 0:02:52]} 6. Bb5 {[%clk 0:02:41]}  d4 {[%clk 0:02:51]} 7. Bxc6+ {[%clk 0:02:37]}  bxc6 {[%clk 0:02:51]} 8. Ne2 {[%clk 0:02:37]}  d3 {[%clk 0:02:50]} 9. Nf4 {[%clk 0:02:37]}  Bg4 {[%clk 0:02:34]} 10. O-O {[%clk 0:02:27]}  e6 {[%clk 0:02:20]} 11. cxd3 {[%clk 0:02:18]}  g5 {[%clk 0:02:09]} 12. b4 {[%clk 0:01:55]}  gxf4 {[%clk 0:02:02]} 13. bxc5 {[%clk 0:01:54]}  Qxd3 {[%clk 0:01:56]} 14. Qb3 {[%clk 0:01:44]}  Qxb3 {[%clk 0:01:51]} 15. axb3 {[%clk 0:01:44]}  Bxf3 {[%clk 0:01:51]} 16. gxf3 {[%clk 0:01:42]}  Bxc5 {[%clk 0:01:51]} 17. Bb2 {[%clk 0:01:36]}  Rg8+ {[%clk 0:01:47]} 18. Kh1 {[%clk 0:01:36]}  O-O-O {[%clk 0:01:47]} 19. Bc3 {[%clk 0:01:24]}  Rd3 {[%clk 0:01:42]} 20. Rg1 {[%clk 0:01:24]}  Rxg1+ {[%clk 0:01:30]} 21. Rxg1 {[%clk 0:01:25]}  Rxf3 {[%clk 0:01:30]} 22. Rg8+ {[%clk 0:00:34]}  Kb7 {[%clk 0:01:28]} 23. b4 {[%clk 0:00:35]}  Bb6 {[%clk 0:01:22]} 24. Rg7 {[%clk 0:00:21]}  Rxf2 {[%clk 0:01:21]} 25. Rxf7 {[%clk 0:00:21]}  f3 {[%clk 0:01:16]} 26. d4 {[%clk 0:00:16]}  Rf1# {[%clk 0:01:15]} 0-1


[Site "https://www.chess.com"]

[Event "Titled Tuesday Blitz July 11 Late 2023"]
[White "Kirillov, Dmitry"]
[Black "cedchass2006"]
[WhiteFideId "34180572"]
[WhiteElo "2544"]
[BlackElo "2354"]
[Result "0-1"]
[Round "5"]
[TimeControl "180+2"]
[Date "2023.07.11"]
[WhiteClock "0:00:05"]
[BlackClock "0:01:43"]
[Board "126"]

1. d4 {[%clk 0:03:00]}  Nf6 {[%clk 0:02:58]} 2. c4 {[%clk 0:02:59]}  e6 {[%clk 0:02:58]} 3. Nf3 {[%clk 0:02:57]}  d5 {[%clk 0:02:58]} 4. Nc3 {[%clk 0:02:54]}  dxc4 {[%clk 0:02:58]} 5. e4 {[%clk 0:02:49]}  Bb4 {[%clk 0:02:58]} 6. Bxc4 {[%clk 0:02:44]}  Nxe4 {[%clk 0:02:58]} 7. O-O {[%clk 0:02:25]}  Nxc3 {[%clk 0:02:57]} 8. bxc3 {[%clk 0:02:22]}  Be7 {[%clk 0:02:58]} 9. Qe2 {[%clk 0:02:01]}  O-O {[%clk 0:02:52]} 10. h4 {[%clk 0:02:00]}  c5 {[%clk 0:02:44]} 11. h5 {[%clk 0:01:51]}  cxd4 {[%clk 0:02:43]} 12. cxd4 {[%clk 0:01:44]}  Nc6 {[%clk 0:02:42]} 13. h6 {[%clk 0:01:43]}  Bf6 {[%clk 0:02:39]} 14. hxg7 {[%clk 0:01:42]}  Bxg7 {[%clk 0:02:39]} 15. Bg5 {[%clk 0:01:41]}  Nxd4 {[%clk 0:02:35]} 16. Nxd4 {[%clk 0:01:09]}  Qxg5 {[%clk 0:02:34]} 17. Nf3 {[%clk 0:01:06]}  Qg6 {[%clk 0:02:30]} 18. Rad1 {[%clk 0:01:03]}  b6 {[%clk 0:02:29]} 19. Bd3 {[%clk 0:00:58]}  Qg4 {[%clk 0:02:10]} 20. Be4 {[%clk 0:00:31]}  Ba6 {[%clk 0:02:05]} 21. Bxh7+ {[%clk 0:00:20]}  Kxh7 {[%clk 0:02:06]} 22. Qxa6 {[%clk 0:00:19]}  Rg8 {[%clk 0:02:05]} 23. Rd3 {[%clk 0:00:16]}  Bd4 {[%clk 0:01:58]} 24. Ne1 {[%clk 0:00:11]}  Rad8 {[%clk 0:01:50]} 25. Rh3+ {[%clk 0:00:11]}  Qxh3 {[%clk 0:01:49]} 26. Qd3+ {[%clk 0:00:04]}  Qxd3 {[%clk 0:01:49]} 27. Nxd3 {[%clk 0:00:05]}  Bc5 {[%clk 0:01:43]} 28. Nf4 {[%clk 0:00:05]} 0-1


[Site "https://www.chess.com"]

[Event "Titled Tuesday Blitz July 11 Late 2023"]
[White "Arencibia Monduy, Antonio"]
[Black "Alahakoon, Isuru"]
[WhiteFideId "3507939"]
[BlackFideId "9900993"]
[WhiteElo "2526"]
[BlackElo "2352"]
[Result "0-1"]
[Round "5"]
[TimeControl "180+2"]
[Date "2023.07.11"]
[WhiteClock "0:00:04"]
[BlackClock "0:00:31"]
[Board "127"]

1. e4 {[%clk 0:03:00]}  d5 {[%clk 0:03:00]} 2. exd5 {[%clk 0:03:00]}  Qxd5 {[%clk 0:03:00]} 3. Nc3 {[%clk 0:03:00]}  Qa5 {[%clk 0:03:00]} 4. Nf3 {[%clk 0:03:00]}  Nf6 {[%clk 0:03:00]} 5. Bc4 {[%clk 0:02:58]}  Bg4 {[%clk 0:02:59]} 6. h3 {[%clk 0:02:58]}  Bh5 {[%clk 0:02:59]} 7. d3 {[%clk 0:02:58]}  Nc6 {[%clk 0:02:59]} 8. Bd2 {[%clk 0:02:58]}  O-O-O {[%clk 0:02:58]} 9. Ne4 {[%clk 0:02:48]}  Qa4 {[%clk 0:02:50]} 10. b3 {[%clk 0:02:38]}  Qa3 {[%clk 0:02:47]} 11. Ng3 {[%clk 0:02:32]}  Bxf3 {[%clk 0:02:44]} 12. Qxf3 {[%clk 0:02:32]}  Nd4 {[%clk 0:02:44]} 13. Qd1 {[%clk 0:02:28]}  e6 {[%clk 0:02:44]} 14. c3 {[%clk 0:02:25]}  Nc6 {[%clk 0:02:40]} 15. b4 {[%clk 0:02:09]}  Ne5 {[%clk 0:02:37]} 16. Qc2 {[%clk 0:02:00]}  Nxc4 {[%clk 0:02:33]} 17. dxc4 {[%clk 0:02:00]}  Qa6 {[%clk 0:02:26]} 18. b5 {[%clk 0:01:48]}  Qa3 {[%clk 0:02:24]} 19. O-O {[%clk 0:01:44]}  Qc5 {[%clk 0:02:18]} 20. Be3 {[%clk 0:01:35]}  Qxc4 {[%clk 0:02:17]} 21. Rab1 {[%clk 0:01:26]}  Bc5 {[%clk 0:02:16]} 22. Bxc5 {[%clk 0:01:23]}  Qxc5 {[%clk 0:02:17]} 23. a4 {[%clk 0:01:21]}  Nd5 {[%clk 0:02:16]} 24. c4 {[%clk 0:01:19]}  Nb4 {[%clk 0:02:04]} 25. Qb3 {[%clk 0:01:16]}  Nd3 {[%clk 0:02:00]} 26. a5 {[%clk 0:01:13]}  Rd4 {[%clk 0:01:51]} 27. Ne2 {[%clk 0:01:04]}  Rd6 {[%clk 0:01:49]} 28. Nc3 {[%clk 0:01:00]}  f5 {[%clk 0:01:39]} 29. Na4 {[%clk 0:00:55]}  Qe5 {[%clk 0:01:33]} 30. c5 {[%clk 0:00:43]}  Nxc5 {[%clk 0:01:26]} 31. Nxc5 {[%clk 0:00:40]}  Qxc5 {[%clk 0:01:27]} 32. Rfc1 {[%clk 0:00:40]}  Qd5 {[%clk 0:01:27]} 33. Qc3 {[%clk 0:00:38]}  Rd7 {[%clk 0:01:18]} 34. a6 {[%clk 0:00:38]}  b6 {[%clk 0:01:14]} 35. Rc2 {[%clk 0:00:36]}  Rhd8 {[%clk 0:01:08]} 36. Qg3 {[%clk 0:00:30]}  Kb8 {[%clk 0:01:03]} 37. Rbc1 {[%clk 0:00:30]}  e5 {[%clk 0:01:02]} 38. Qg5 {[%clk 0:00:08]}  g6 {[%clk 0:01:01]} 39. Rb2 {[%clk 0:00:08]}  Qd4 {[%clk 0:00:38]} 40. Rbc2 {[%clk 0:00:08]}  Qf4 {[%clk 0:00:33]} 41. Qf6 {[%clk 0:00:04]}  Rd1+ {[%clk 0:00:31]} 0-1


[Site "https://www.chess.com"]

[Event "Titled Tuesday Blitz July 11 Late 2023"]
[White "Cluke86"]
[Black "Janaszak, Dawid"]
[BlackFideId "1119206"]
[WhiteElo "2346"]
[BlackElo "2525"]
[Result "1/2-1/2"]
[Round "5"]
[TimeControl "180+2"]
[Date "2023.07.11"]
[WhiteClock "0:02:23"]
[BlackClock "0:01:27"]
[Board "128"]

1. e4 {[%clk 0:02:57]}  e5 {[%clk 0:02:59]} 2. Nf3 {[%clk 0:02:56]}  Nc6 {[%clk 0:02:58]} 3. Bc4 {[%clk 0:02:56]}  Nf6 {[%clk 0:02:58]} 4. O-O {[%clk 0:02:56]}  Bc5 {[%clk 0:02:56]} 5. d4 {[%clk 0:02:56]}  exd4 {[%clk 0:02:52]} 6. e5 {[%clk 0:02:55]}  d5 {[%clk 0:02:52]} 7. exf6 {[%clk 0:02:55]}  dxc4 {[%clk 0:02:53]} 8. Re1+ {[%clk 0:02:53]}  Be6 {[%clk 0:02:52]} 9. Ng5 {[%clk 0:02:52]}  Qd5 {[%clk 0:02:52]} 10. Nc3 {[%clk 0:02:51]}  Qf5 {[%clk 0:02:52]} 11. Nce4 {[%clk 0:02:50]}  O-O-O {[%clk 0:02:46]} 12. g4 {[%clk 0:02:42]}  Qe5 {[%clk 0:02:23]} 13. Nf3 {[%clk 0:02:31]}  Qd5 {[%clk 0:02:17]} 14. fxg7 {[%clk 0:02:26]}  Rhg8 {[%clk 0:01:55]} 15. Nf6 {[%clk 0:02:25]}  Qd6 {[%clk 0:01:55]} 16. Ne4 {[%clk 0:02:24]}  Qd5 {[%clk 0:01:46]} 17. Nf6 {[%clk 0:02:23]}  Qd6 {[%clk 0:01:45]} 18. Ne4 {[%clk 0:02:23]}  Qd5 {[%clk 0:01:27]} 1/2-1/2


[Site "https://www.chess.com"]

[Event "Titled Tuesday Blitz July 11 Late 2023"]
[White "Al Mukhaini, Shima"]
[Black "Bettalli, Francesco"]
[WhiteFideId "22005854"]
[BlackFideId "2816453"]
[WhiteElo "2301"]
[BlackElo "2472"]
[Result "1-0"]
[Round "5"]
[TimeControl "180+2"]
[Date "2023.07.11"]
[WhiteClock "0:00:38"]
[BlackClock "0:01:09"]
[Board "135"]

1. b3 {[%clk 0:03:00]}  e5 {[%clk 0:02:52]} 2. Bb2 {[%clk 0:03:01]}  d6 {[%clk 0:02:52]} 3. e3 {[%clk 0:03:02]}  g6 {[%clk 0:02:48]} 4. d4 {[%clk 0:03:01]}  Bg7 {[%clk 0:02:49]} 5. dxe5 {[%clk 0:03:01]}  Nd7 {[%clk 0:02:49]} 6. Nf3 {[%clk 0:03:00]}  Nxe5 {[%clk 0:02:49]} 7. Nxe5 {[%clk 0:03:00]}  Bxe5 {[%clk 0:02:50]} 8. Bxe5 {[%clk 0:03:00]}  dxe5 {[%clk 0:02:51]} 9. Qxd8+ {[%clk 0:03:00]}  Kxd8 {[%clk 0:02:52]} 10. Nc3 {[%clk 0:03:01]}  c6 {[%clk 0:02:52]} 11. O-O-O+ {[%clk 0:03:02]}  Kc7 {[%clk 0:02:52]} 12. Ne4 {[%clk 0:03:03]}  Ne7 {[%clk 0:02:52]} 13. Nf6 {[%clk 0:02:58]}  Be6 {[%clk 0:02:51]} 14. Bc4 {[%clk 0:02:51]}  Bxc4 {[%clk 0:02:48]} 15. Rd7+ {[%clk 0:02:51]}  Kb6 {[%clk 0:02:48]} 16. Rxe7 {[%clk 0:02:51]}  Be6 {[%clk 0:02:48]} 17. Rd1 {[%clk 0:02:44]}  Rhd8 {[%clk 0:02:43]} 18. Nxh7 {[%clk 0:02:14]}  Rxd1+ {[%clk 0:02:32]} 19. Kxd1 {[%clk 0:02:14]}  Rh8 {[%clk 0:02:28]} 20. Ng5 {[%clk 0:02:14]}  Rxh2 {[%clk 0:02:28]} 21. Nxe6 {[%clk 0:02:14]}  fxe6 {[%clk 0:02:29]} 22. Rxe6 {[%clk 0:02:12]}  Rxg2 {[%clk 0:02:27]} 23. Ke2 {[%clk 0:02:12]}  Rg5 {[%clk 0:02:23]} 24. Re7 {[%clk 0:02:08]}  a5 {[%clk 0:02:15]} 25. a4 {[%clk 0:02:07]}  Ka6 {[%clk 0:02:14]} 26. c4 {[%clk 0:01:59]}  Rf5 {[%clk 0:02:12]} 27. e4 {[%clk 0:01:55]}  Rh5 {[%clk 0:02:11]} 28. Re6 {[%clk 0:01:54]}  Rg5 {[%clk 0:02:10]} 29. c5 {[%clk 0:01:53]}  Ka7 {[%clk 0:02:01]} 30. Re8 {[%clk 0:01:52]}  b6 {[%clk 0:01:59]} 31. Re7+ {[%clk 0:01:51]}  Ka6 {[%clk 0:01:59]} 32. Rc7 {[%clk 0:01:44]}  Rg4 {[%clk 0:01:53]} 33. Ke3 {[%clk 0:01:31]}  bxc5 {[%clk 0:01:37]} 34. Rxc6+ {[%clk 0:01:30]}  Kb7 {[%clk 0:01:37]} 35. Rxc5 {[%clk 0:01:31]}  Rg1 {[%clk 0:01:36]} 36. Rxa5 {[%clk 0:01:30]}  Re1+ {[%clk 0:01:36]} 37. Kd3 {[%clk 0:01:26]}  Rd1+ {[%clk 0:01:35]} 38. Ke2 {[%clk 0:01:16]}  Rb1 {[%clk 0:01:35]} 39. Rb5+ {[%clk 0:01:15]}  Kc6 {[%clk 0:01:35]} 40. Rxe5 {[%clk 0:01:09]}  Rxb3 {[%clk 0:01:34]} 41. Re6+ {[%clk 0:01:09]}  Kc5 {[%clk 0:01:33]} 42. Rxg6 {[%clk 0:01:07]}  Rb4 {[%clk 0:01:34]} 43. Ke3 {[%clk 0:01:05]}  Rxa4 {[%clk 0:01:33]} 44. Kf4 {[%clk 0:01:04]}  Kd4 {[%clk 0:01:29]} 45. Rd6+ {[%clk 0:01:03]}  Kc5 {[%clk 0:01:30]} 46. Rd5+ {[%clk 0:01:02]}  Kc6 {[%clk 0:01:30]} 47. Ke5 {[%clk 0:00:59]}  Ra8 {[%clk 0:01:30]} 48. f4 {[%clk 0:00:58]}  Re8+ {[%clk 0:01:31]} 49. Kd4 {[%clk 0:00:58]}  Ra8 {[%clk 0:01:31]} 50. f5 {[%clk 0:00:53]}  Ra1 {[%clk 0:01:25]} 51. f6 {[%clk 0:00:50]}  Rf1 {[%clk 0:01:24]} 52. Ke5 {[%clk 0:00:50]}  Rh1 {[%clk 0:01:18]} 53. Ke6 {[%clk 0:00:48]}  Rf1 {[%clk 0:01:17]} 54. e5 {[%clk 0:00:47]}  Kc7 {[%clk 0:01:17]} 55. Ke7 {[%clk 0:00:45]}  Rf5 {[%clk 0:01:16]} 56. Rd7+ {[%clk 0:00:43]}  Kc6 {[%clk 0:01:16]} 57. Rd6+ {[%clk 0:00:43]}  Kc7 {[%clk 0:01:16]} 58. Ke6 {[%clk 0:00:42]}  Rf1 {[%clk 0:01:16]} 59. Rd2 {[%clk 0:00:41]}  Rf3 {[%clk 0:01:14]} 60. Ke7 {[%clk 0:00:41]}  Kc6 {[%clk 0:01:11]} 61. e6 {[%clk 0:00:41]}  Kc7 {[%clk 0:01:11]} 62. f7 {[%clk 0:00:41]}  Rh3 {[%clk 0:01:11]} 63. Rc2+ {[%clk 0:00:40]}  Kb7 {[%clk 0:01:10]} 64. f8=Q {[%clk 0:00:40]}  Rh7+ {[%clk 0:01:11]} 65. Qf7 {[%clk 0:00:40]}  Rh1 {[%clk 0:01:09]} 66. Qf3+ {[%clk 0:00:38]} 1-0


[Site "https://www.chess.com"]

[Event "Titled Tuesday Blitz July 11 Late 2023"]
[White "KorolDimitriy75"]
[Black "OllieAr"]
[WhiteElo "2442"]
[BlackElo "2296"]
[Result "0-1"]
[Round "5"]
[TimeControl "180+2"]
[Date "2023.07.11"]
[WhiteClock "0:00:00"]
[BlackClock "0:00:59"]
[Board "136"]

1. d4 {[%clk 0:03:00]}  d5 {[%clk 0:02:59]} 2. c4 {[%clk 0:03:01]}  e6 {[%clk 0:03:00]} 3. Nc3 {[%clk 0:03:01]}  Nf6 {[%clk 0:03:00]} 4. Bg5 {[%clk 0:03:01]}  Nbd7 {[%clk 0:02:59]} 5. cxd5 {[%clk 0:03:01]}  exd5 {[%clk 0:03:00]} 6. e3 {[%clk 0:03:01]}  c6 {[%clk 0:03:00]} 7. Bd3 {[%clk 0:03:01]}  Bd6 {[%clk 0:03:00]} 8. Qc2 {[%clk 0:03:00]}  Nf8 {[%clk 0:02:57]} 9. Nge2 {[%clk 0:02:54]}  Ng6 {[%clk 0:02:58]} 10. h3 {[%clk 0:02:38]}  h6 {[%clk 0:02:44]} 11. Bxf6 {[%clk 0:02:15]}  Qxf6 {[%clk 0:02:45]} 12. O-O {[%clk 0:02:02]}  O-O {[%clk 0:02:43]} 13. e4 {[%clk 0:01:57]}  dxe4 {[%clk 0:02:36]} 14. Nxe4 {[%clk 0:01:58]}  Qe7 {[%clk 0:02:37]} 15. Nxd6 {[%clk 0:01:26]}  Qxd6 {[%clk 0:02:37]} 16. Rad1 {[%clk 0:01:25]}  Nf4 {[%clk 0:02:37]} 17. Nxf4 {[%clk 0:01:15]}  Qxf4 {[%clk 0:02:37]} 18. Rfe1 {[%clk 0:01:11]}  Be6 {[%clk 0:02:36]} 19. Bc4 {[%clk 0:00:55]}  Bxc4 {[%clk 0:02:32]} 20. Qxc4 {[%clk 0:00:56]}  Rad8 {[%clk 0:02:33]} 21. Re7 {[%clk 0:00:39]}  Qb8 {[%clk 0:02:01]} 22. Rd3 {[%clk 0:00:19]}  Qc8 {[%clk 0:01:23]} 23. Rf3 {[%clk 0:00:17]}  Rd5 {[%clk 0:01:21]} 24. Rfe3 {[%clk 0:00:13]}  Rd7 {[%clk 0:01:16]} 25. a4 {[%clk 0:00:10]}  Qd8 {[%clk 0:01:12]} 26. Rxd7 {[%clk 0:00:09]}  Qxd7 {[%clk 0:01:13]} 27. Rd3 {[%clk 0:00:07]}  Rd8 {[%clk 0:01:13]} 28. Rf3 {[%clk 0:00:05]}  Qd5 {[%clk 0:01:11]} 29. Qxd5 {[%clk 0:00:02]}  Rxd5 {[%clk 0:01:12]} 30. Rf4 {[%clk 0:00:02]}  g5 {[%clk 0:01:09]} 31. Re4 {[%clk 0:00:01]}  Kf8 {[%clk 0:01:09]} 32. g4 {[%clk 0:00:01]}  b5 {[%clk 0:01:04]} 33. Kg2 {[%clk 0:00:01]}  bxa4 {[%clk 0:01:03]} 34. Kf3 {[%clk 0:00:01]}  Rb5 {[%clk 0:01:02]} 35. Re3 {[%clk 0:00:01]}  Rxb2 {[%clk 0:01:01]} 36. Ke4 {[%clk 0:00:01]}  Rb3 {[%clk 0:01:00]} 37. Re2 {[%clk 0:00:00]}  Rxh3 {[%clk 0:00:59]} 0-1


[Site "https://www.chess.com"]

[Event "Titled Tuesday Blitz July 11 Late 2023"]
[White "Georg, Heinz"]
[Black "Rodriguez Fontecha, Marcos"]
[WhiteFideId "4607295"]
[BlackFideId "2256576"]
[WhiteElo "2277"]
[BlackElo "2414"]
[Result "0-1"]
[Round "5"]
[TimeControl "180+2"]
[Date "2023.07.11"]
[WhiteClock "0:00:00"]
[BlackClock "0:00:10"]
[Board "138"]

1. b4 {[%clk 0:02:59]}  e6 {[%clk 0:02:56]} 2. Bb2 {[%clk 0:02:58]}  d5 {[%clk 0:02:56]} 3. e3 {[%clk 0:02:56]}  Nf6 {[%clk 0:02:56]} 4. b5 {[%clk 0:02:55]}  c5 {[%clk 0:02:55]} 5. Nf3 {[%clk 0:02:53]}  Bd6 {[%clk 0:02:55]} 6. c4 {[%clk 0:02:52]}  O-O {[%clk 0:02:53]} 7. d4 {[%clk 0:02:52]}  Nbd7 {[%clk 0:02:44]} 8. Nbd2 {[%clk 0:02:42]}  a5 {[%clk 0:02:41]} 9. Bd3 {[%clk 0:02:39]}  Qc7 {[%clk 0:02:34]} 10. O-O {[%clk 0:02:17]}  b6 {[%clk 0:02:33]} 11. h3 {[%clk 0:02:16]}  Bb7 {[%clk 0:02:33]} 12. Rc1 {[%clk 0:02:10]}  Rac8 {[%clk 0:02:26]} 13. cxd5 {[%clk 0:02:09]}  exd5 {[%clk 0:02:25]} 14. Bb1 {[%clk 0:01:59]}  c4 {[%clk 0:02:13]} 15. Bc3 {[%clk 0:01:48]}  Ba3 {[%clk 0:02:06]} 16. Qc2 {[%clk 0:01:35]}  Bxc1 {[%clk 0:02:01]} 17. Rxc1 {[%clk 0:01:36]}  Rfe8 {[%clk 0:01:58]} 18. Ng5 {[%clk 0:01:33]}  h6 {[%clk 0:01:50]} 19. Ngf3 {[%clk 0:01:08]}  Qd6 {[%clk 0:01:49]} 20. Qf5 {[%clk 0:01:03]}  Ne4 {[%clk 0:01:35]} 21. Nxe4 {[%clk 0:01:02]}  dxe4 {[%clk 0:01:36]} 22. Ne5 {[%clk 0:01:00]}  Nf6 {[%clk 0:01:21]} 23. Bb2 {[%clk 0:00:37]}  Bd5 {[%clk 0:01:21]} 24. g4 {[%clk 0:00:29]}  Be6 {[%clk 0:01:20]} 25. Qf4 {[%clk 0:00:28]}  c3 {[%clk 0:00:45]} 26. Bxc3 {[%clk 0:00:27]}  Rxc3 {[%clk 0:00:44]} 27. Rxc3 {[%clk 0:00:26]}  Nd5 {[%clk 0:00:44]} 28. Rc6 {[%clk 0:00:15]}  Qxc6 {[%clk 0:00:38]} 29. bxc6 {[%clk 0:00:16]}  Nxf4 {[%clk 0:00:37]} 30. exf4 {[%clk 0:00:15]}  Bd5 {[%clk 0:00:31]} 31. Kf1 {[%clk 0:00:13]}  Rc8 {[%clk 0:00:30]} 32. Ke2 {[%clk 0:00:11]}  f6 {[%clk 0:00:26]} 33. Ng6 {[%clk 0:00:10]}  Kf7 {[%clk 0:00:25]} 34. f5 {[%clk 0:00:10]}  Rxc6 {[%clk 0:00:17]} 35. Nf4 {[%clk 0:00:10]}  Rc1 {[%clk 0:00:17]} 36. Nxd5 {[%clk 0:00:06]}  Rxb1 {[%clk 0:00:17]} 37. Nc3 {[%clk 0:00:07]}  Rb2+ {[%clk 0:00:14]} 38. Ke3 {[%clk 0:00:07]}  b5 {[%clk 0:00:14]} 39. Nxe4 {[%clk 0:00:07]}  b4 {[%clk 0:00:14]} 40. d5 {[%clk 0:00:06]}  Ke7 {[%clk 0:00:13]} 41. Kd4 {[%clk 0:00:04]}  Rxa2 {[%clk 0:00:11]} 42. d6+ {[%clk 0:00:01]}  Kd7 {[%clk 0:00:10]} 43. Kd5 {[%clk 0:00:00]}  Rc2 {[%clk 0:00:10]} 0-1


[Site "https://www.chess.com"]